fUSD/lending_fUSD_20240831
["ID","MTS","AMOUNT","RATE_DAILY","PERIOD"]
[336742987,1725096091617,-512.71,0.00038904,120]
[336742988,1725096091666,-500.0,0.00038904,120]
[336742989,1725096091715,-924.45,0.00038904,120]
[336742990,1725096091765,-1223.28,0.00038904,120]
[336742991,1725096091811,-1129.99,0.00038904,120]
[336742992,1725096091857,-500.0,0.00038904,120]
[336742993,1725096091903,-608.6,0.00038904,120]
[336742994,1725096091951,-1166.67,0.00038904,120]
[336742995,1725096091998,-500.0,0.00038904,120]
[336742996,1725096092046,-500.0,0.00038904,120]
[336742997,1725096092096,-18433.68,0.00038904,120]
[336742998,1725096092146,-1392.73,0.00038904,120]
[336742999,1725096092194,-1402.0,0.00038904,120]
[336743000,1725096092243,-9146.0,0.00038904,120]
[336743001,1725096092291,-1370.15,0.00038904,120]
[336743002,1725096092336,-841.44,0.00038904,120]
[336743003,1725096092385,-500.0,0.00039452,120]
[336743004,1725096092432,-761.33,0.00039452,120]
[336743005,1725096092477,-500.0,0.00039452,120]
[336743006,1725096092522,-500.0,0.00039452,120]
[336743007,1725096092571,-500.0,0.00039452,120]
[336743008,1725096092618,-500.0,0.00039452,120]
[336743009,1725096092664,-728.45,0.00039452,120]
[336743010,1725096092713,-500.0,0.00039452,120]
[336743011,1725096092756,-500.0,0.00039452,120]
[336743012,1725096092805,-500.0,0.00039452,120]
[336743013,1725096092851,-602.57,0.00039452,120]
[336743014,1725096092896,-500.0,0.00039452,120]
[336743015,1725096092942,-452.66291488,0.00039452,120]
[336743016,1725096092985,-1536.81,0.00039452,120]
[336743017,1725096093029,-355.84653197,0.00039452,120]
[336743018,1725096093076,-718.45,0.00039452,120]
[336743019,1725096093122,-500.0,0.00039452,120]
[336743020,1725096093170,-613.86,0.00039452,120]
[336743021,1725096093219,-500.0,0.00039452,120]
[336743022,1725096093267,-737.5,0.00039452,120]
[336743023,1725096093315,-500.0,0.00039452,120]
[336743024,1725096093364,-500.0,0.00039452,120]
[336743025,1725096093413,-500.0,0.00039452,120]
[336743026,1725096093463,-500.0,0.00039452,120]
[336743027,1725096093512,-500.0,0.00039452,120]
[336743028,1725096093564,-500.0,0.00039452,120]
[336743029,1725096093616,-854.52,0.00039452,120]
[336743030,1725096093668,-500.0,0.00039452,120]
[336743031,1725096093720,-500.0,0.00039452,120]
[336743032,1725096093772,-500.0,0.00039452,120]
[336743033,1725096093825,-500.0,0.00039452,120]
[336743034,1725096093876,-500.0,0.00039452,120]
[336743035,1725096093927,-500.0,0.00039452,120]
[336743036,1725096093978,-500.0,0.00039452,120]
[336743037,1725096094030,-504.81,0.00039452,120]
[336743038,1725096094081,-500.0,0.00039452,120]
[336743039,1725096094130,-500.0,0.00039452,120]
[336743040,1725096094180,-577.66,0.00039452,120]
[336743041,1725096094230,-500.0,0.00039452,120]
[336743042,1725096094278,-537.13,0.00039452,120]
[336743043,1725096094327,-500.0,0.00039452,120]
[336743044,1725096094376,-639.49,0.00039452,120]
[336743045,1725096094424,-500.0,0.00039452,120]
[336743046,1725096094472,-500.0,0.00039452,120]
[336743047,1725096094522,-500.0,0.00039452,120]
[336743048,1725096094572,-558.16,0.00039452,120]
[336743049,1725096094621,-641.17716178,0.00039452,120]
[336743050,1725096094671,-500.0,0.00039452,120]
[336743051,1725096094720,-500.0,0.00039452,120]
[336743052,1725096094768,-606.69,0.00039452,120]
[336743053,1725096094817,-500.0,0.00039452,120]
[336743054,1725096094865,-500.0,0.00039452,120]
[336743055,1725096094913,-500.0,0.00039452,120]
[336743056,1725096094962,-500.0,0.00039452,120]
[336743057,1725096095162,-433.61286537,0.00039452,120]
[336743058,1725096095212,-500.0,0.00039452,120]
[336743059,1725096095264,-500.06,0.00039452,120]
[336743060,1725096095313,-533.19,0.00039452,120]
[336743061,1725096095363,-781.37,0.00039452,120]
[336743062,1725096095416,-500.0,0.00039452,120]
[336743063,1725096095468,-500.0,0.00039452,120]
[336743064,1725096095519,-541.93,0.00039452,120]
[336743065,1725096095569,-500.0,0.00039452,120]
[336743066,1725096095618,-541.84,0.00039452,120]
[336743067,1725096095671,-500.0,0.00039452,120]
[336743068,1725096095719,-500.0,0.00039452,120]
[336743069,1725096095768,-500.0,0.00039452,120]
[336743070,1725096095816,-500.0,0.00039452,120]
[336743071,1725096095865,-198.33500162,0.00039452,120]
[336743072,1725096095916,-500.0,0.00039452,120]
[336743073,1725096095966,-500.0,0.00039452,120]
[336743074,1725096096015,-500.0,0.00039452,120]
[336743075,1725096096063,-838.09,0.00039452,120]
[336743076,1725096096110,-500.0,0.00039452,120]
[336743077,1725096096155,-500.0,0.00039452,120]
[336743078,1725096096200,-500.0,0.00039452,120]
[336743079,1725096096246,-509.55,0.00039452,120]
[336743080,1725096096293,-500.0,0.00039452,120]
[336743081,1725096096338,-500.0,0.00039452,120]
[336743082,1725096096383,-500.0,0.00039452,120]
[336743083,1725096096429,-708.98,0.00039452,120]
[336743084,1725096096477,-500.0,0.00039452,120]
[336743085,1725096096525,-500.0,0.00039452,120]
[336743086,1725096096573,-500.0,0.00039452,120]
[336743087,1725096096622,-1509.98,0.00039452,120]
[336743088,1725096096669,-558.78,0.00039452,120]
[336743089,1725096096715,-500.0,0.00039452,120]
[336743090,1725096096762,-1624.06,0.00039452,120]
[336743091,1725096096809,-500.0,0.00039452,120]
[336743092,1725096096855,-500.0,0.00039452,120]
[336743093,1725096096902,-500.0,0.00039452,120]
[336743094,1725096096950,-640.25,0.00039452,120]
[336743095,1725096096997,-500.0,0.00039452,120]
[336743096,1725096097049,-934.21,0.00039452,120]
[336743097,1725096097098,-969.88,0.00039452,120]
[336743098,1725096097146,-791.62,0.00039452,120]
[336743099,1725096097195,-915.31,0.00039452,120]
[336743100,1725096097244,-423.22905048,0.00039452,120]
[336743101,1725096097295,-1688.13,0.00039452,120]
[336743102,1725096097344,-616.66,0.00039452,120]
[336743103,1725096097397,-777.63,0.00039452,120]
[336743104,1725096097450,-500.0,0.00039452,120]
[336743105,1725096097501,-1310.98,0.00039452,120]
[336743106,1725096097553,-875.1,0.00039452,120]
[336743107,1725096097608,-1032.09,0.00039452,120]
[336743108,1725096097660,-2876.73,0.00039452,120]
[336743109,1725096097709,-761.85,0.00039452,120]
[336743110,1725096097761,-1344.34,0.00039452,120]
[336743111,1725096097811,-500.0,0.00039452,120]
[336743112,1725096097863,-500.0,0.00039452,120]
[336743113,1725096097914,-4839.39,0.00039452,120]
[336743114,1725096097962,-500.0,0.00039452,120]
[336743115,1725096098015,-1399.41,0.00039452,120]
[336743116,1725096098064,-500.0,0.00039452,120]
[336743117,1725096098115,-588.48,0.00039452,120]
[336743118,1725096098162,-500.0,0.00039452,120]
[336743119,1725096098209,-500.0,0.00039452,120]
[336743120,1725096098256,-500.0,0.00039452,120]
[336743121,1725096098305,-207.56819057,0.00039452,120]
[336743122,1725096098351,-559.89,0.00039452,120]
[336743123,1725096098396,-500.0,0.00039452,120]
[336743124,1725096098442,-500.0,0.00039452,120]
[336743125,1725096098486,-500.0,0.00039452,120]
[336743126,1725096098532,-511.74,0.00039452,120]
[336743127,1725096098581,-500.0,0.00039452,120]
[336743128,1725096098630,-380.42478346,0.00039452,120]
[336743129,1725096098680,-500.0,0.00039452,120]
[336743130,1725096098729,-500.0,0.00039452,120]
[336743131,1725096098779,-1112.54,0.00039452,120]
[336743132,1725096098827,-500.0,0.00039452,120]
[336743133,1725096098875,-500.0,0.00039452,120]
[336743134,1725096098924,-500.0,0.00039452,120]
[336743135,1725096098975,-508.19,0.00039452,120]
[336743136,1725096099023,-2558.51,0.00039452,120]
[336743137,1725096099070,-368.59767221,0.00039452,120]
[336743138,1725096099117,-500.0,0.00039452,120]
[336743139,1725096099164,-500.0,0.00039452,120]
[336743140,1725096099209,-500.0,0.00039452,120]
[336743141,1725096099255,-500.0,0.00039452,120]
[336743142,1725096099302,-694.5,0.00039452,120]
[336743143,1725096099349,-500.0,0.00039452,120]
[336743144,1725096099394,-923.73,0.00039452,120]
[336743145,1725096099442,-500.0,0.00039452,120]
[336743146,1725096099488,-1446.32,0.00039452,120]
[336743147,1725096099535,-500.0,0.00039452,120]
[336743148,1725096099582,-1350.52,0.00039452,120]
[336743149,1725096099629,-500.0,0.00039452,120]
[336743150,1725096099681,-1170.8,0.00039452,120]
[336743151,1725096099730,-618.91,0.00039452,120]
[336743152,1725096099780,-500.0,0.00039452,120]
[336743153,1725096099829,-500.0,0.00039452,120]
[336743154,1725096099879,-3324.83,0.00039452,120]
[336743155,1725096099925,-1273.21,0.00039452,120]
[336743156,1725096099974,-500.0,0.00039452,120]
[336743157,1725096100022,-2000.0,0.00039452,120]
[336743158,1725096100070,-500.0,0.00039452,120]
[336743159,1725096100116,-1114.0,0.00039452,120]
[336743160,1725096100163,-1256.51,0.00039452,120]
[336743161,1725096100377,-1913.46,0.00039452,120]
[336743162,1725096100426,-500.0,0.00039452,120]
[336743163,1725096100475,-1221.34,0.00039452,120]
[336743164,1725096100522,-500.0,0.00039452,120]
[336743165,1725096100574,-500.0,0.00039452,120]
[336743166,1725096100622,-500.0,0.00039452,120]
[336743167,1725096100670,-500.0,0.00039452,120]
[336743168,1725096100718,-1287.93,0.00039452,120]
[336743169,1725096100767,-500.0,0.00039452,120]
[336743170,1725096100816,-500.0,0.00039452,120]
[336743171,1725096100865,-500.0,0.00039452,120]
[336743172,1725096100914,-925.06,0.00039452,120]
[336743173,1725096100962,-500.0,0.00039452,120]
[336743174,1725096101009,-500.0,0.00039452,120]
[336743175,1725096101056,-500.0,0.00039452,120]
[336743176,1725096101105,-500.0,0.00039452,120]
[336743177,1725096101151,-548.88,0.00039452,120]
[336743178,1725096101199,-775.46,0.00039452,120]
[336743179,1725096101245,-1018.59,0.00039452,120]
[336743180,1725096101290,-540.19,0.00039452,120]
[336743181,1725096101334,-1162.77,0.00039452,120]
[336743182,1725096101378,-500.0,0.00039452,120]
[336743183,1725096101421,-500.0,0.00039452,120]
[336743184,1725096101464,-500.0,0.00039452,120]
[336743185,1725096101507,-2066.04,0.00039452,120]
[336743186,1725096101553,-500.0,0.00039452,120]
[336743187,1725096101601,-500.0,0.00039452,120]
[336743188,1725096101650,-500.0,0.00039452,120]
[336743189,1725096101696,-500.0,0.00039452,120]
[336743190,1725096101743,-500.0,0.00039452,120]
[336743191,1725096101790,-721.89,0.00039452,120]
[336743192,1725096101837,-500.0,0.00039452,120]
[336743193,1725096101881,-500.0,0.00039452,120]
[336743194,1725096101929,-1547.45,0.00039452,120]
[336743195,1725096101980,-666.61,0.00039452,120]
[336743196,1725096102031,-500.0,0.00039452,120]
[336743197,1725096102081,-598.25,0.00039452,120]
[336743198,1725096102132,-558.12,0.00039452,120]
[336743199,1725096102182,-643.08,0.00039452,120]
[336743200,1725096102233,-585.19,0.00039452,120]
[336743201,1725096102283,-2179.7,0.00039452,120]
[336743202,1725096102332,-777.19,0.00039452,120]
[336743203,1725096102378,-500.0,0.00039452,120]
[336743204,1725096102426,-500.0,0.00039452,120]
[336743205,1725096102477,-2274.45,0.00039452,120]
[336743206,1725096102526,-500.0,0.00039452,120]
[336743207,1725096102575,-635.42,0.00039452,120]
[336743208,1725096102624,-500.0,0.00039452,120]
[336743209,1725096102675,-868.12,0.00039452,120]
[336743210,1725096102722,-500.0,0.00039452,120]
[336743211,1725096102771,-500.0,0.00039452,120]
[336743212,1725096102821,-1151.6,0.00039452,120]
[336743213,1725096102869,-562.37,0.00039452,120]
[336743214,1725096102919,-1582.23,0.00039452,120]
[336743215,1725096102968,-867.17,0.00039452,120]
[336743216,1725096103017,-1256.91,0.00039452,120]
[336743217,1725096103065,-500.0,0.00039452,120]
[336743218,1725096103111,-500.0,0.00039452,120]
[336743219,1725096103158,-500.0,0.00039452,120]
[336743220,1725096103205,-500.0,0.00039452,120]
[336743221,1725096103250,-735.6,0.00039452,120]
[336743222,1725096103297,-2186.79,0.00039452,120]
[336743223,1725096103343,-680.15,0.00039452,120]
[336743224,1725096103389,-4740.51,0.00039452,120]
[336743225,1725096103436,-500.0,0.00039452,120]
[336743226,1725096103480,-601.44,0.00039452,120]
[336743227,1725096103527,-786.8,0.00039452,120]
[336743228,1725096103576,-12860.68,0.00039452,120]
[336743229,1725096103626,-500.0,0.00039452,120]
[336743230,1725096103674,-834.67,0.00039452,120]
[336743231,1725096103722,-500.0,0.00039452,120]
[336743232,1725096103771,-500.0,0.00039452,120]
[336743233,1725096103821,-500.0,0.00039452,120]
[336743234,1725096103874,-954.8,0.00039452,120]
[336743235,1725096103929,-961.43,0.00039452,120]
[336743236,1725096103982,-997.06,0.00039452,120]
[336743237,1725096104035,-500.0,0.00039452,120]
[336743238,1725096104086,-500.0,0.00039452,120]
[336743239,1725096104136,-507.58,0.00039452,120]
[336743240,1725096104184,-500.0,0.00039452,120]
[336743241,1725096104229,-996.39,0.00039452,120]
[336743242,1725096104276,-500.0,0.00039452,120]
[336743243,1725096104324,-500.0,0.00039452,120]
[336743244,1725096104371,-500.0,0.00039452,120]
[336743245,1725096104416,-500.0,0.00039452,120]
[336743246,1725096104463,-500.0,0.00039452,120]
[336743247,1725096104509,-615.17,0.00039452,120]
[336743248,1725096104558,-510.32,0.00039452,120]
[336743249,1725096104614,-941.17,0.00039452,120]
[336743250,1725096104664,-4187.61,0.00039452,120]
[336743251,1725096104716,-10782.5,0.00039452,120]
[336743252,1725096104768,-500.0,0.00039452,120]
[336743253,1725096104817,-500.0,0.00039452,120]
[336743254,1725096104868,-591.64,0.00039452,120]
[336743255,1725096104919,-500.0,0.00039452,120]
[336743256,1725096104969,-500.0,0.00039452,120]
[336743257,1725096105019,-500.0,0.00039452,120]
[336743258,1725096105069,-519.14,0.00039452,120]
[336743259,1725096105117,-675.23,0.00039452,120]
[336743260,1725096105164,-653.02,0.00039452,120]
[336743261,1725096105211,-500.0,0.00039452,120]
[336743262,1725096105262,-500.0,0.00039452,120]
[336743263,1725096105312,-500.0,0.00039452,120]
[336743264,1725096105364,-1228.8,0.00039452,120]
[336743265,1725096105577,-557.32,0.00039452,120]
[336743266,1725096105631,-520.80367515,0.00039452,120]
[336743267,1725096105682,-1015.85,0.00039452,120]
[336743268,1725096105732,-500.0,0.00039452,120]
[336743269,1725096105783,-1823.12,0.00039452,120]
[336743270,1725096105832,-2186.95,0.00039452,120]
[336743271,1725096105880,-652.33,0.00039452,120]
[336743272,1725096105929,-702.23,0.00039452,120]
[336743273,1725096105981,-500.0,0.00039452,120]
[336743274,1725096106035,-2082.61,0.00039452,120]
[336743275,1725096106087,-500.0,0.00039452,120]
[336743276,1725096106139,-500.0,0.00039452,120]
[336743277,1725096106191,-500.0,0.00039452,120]
[336743278,1725096106242,-694.0,0.00039452,120]
[336743279,1725096106289,-500.0,0.00039452,120]
[336743280,1725096106336,-997.15,0.00039452,120]
[336743281,1725096106384,-604.52,0.00039452,120]
[336743282,1725096106430,-501.24,0.00039452,120]
[336743283,1725096106478,-500.0,0.00039452,120]
[336743284,1725096106526,-831.62,0.00039452,120]
[336743285,1725096106574,-835.51,0.00039452,120]
[336743286,1725096106622,-762.21,0.00039452,120]
[336743287,1725096106670,-6300.15,0.00039452,120]
[336743288,1725096106717,-887.91,0.00039452,120]
[336743289,1725096106765,-500.0,0.00039452,120]
[336743290,1725096106811,-500.0,0.00039452,120]
[336743291,1725096106857,-593.65,0.00039452,120]
[336743292,1725096106905,-500.0,0.00039452,120]
[336743293,1725096106951,-4114.25,0.00039452,120]
[336743294,1725096106998,-636.31,0.00039452,120]
[336743295,1725096107049,-11442.62,0.00039452,120]
[336743296,1725096107100,-564.38,0.00039452,120]
[336743297,1725096107151,-500.0,0.00039452,120]
[336743298,1725096107200,-500.0,0.00039452,120]
[336743299,1725096107249,-500.0,0.00039452,120]
[336743300,1725096107297,-500.0,0.00039452,120]
[336743301,1725096107344,-1161.84,0.00039452,120]
[336743302,1725096107390,-588.17,0.00039452,120]
[336743303,1725096107437,-1654.38,0.00039452,120]
[336743304,1725096107486,-1647.2,0.00039452,120]
[336743305,1725096107534,-500.0,0.00039452,120]
[336743306,1725096107586,-500.0,0.00039452,120]
[336743307,1725096107637,-874.76,0.00039452,120]
[336743308,1725096107688,-1031.07,0.00039452,120]
[336743309,1725096107736,-500.0,0.00039452,120]
[336743310,1725096107786,-1806.46,0.00039452,120]
[336743311,1725096107835,-1786.04,0.00039452,120]
[336743312,1725096107885,-500.0,0.00039452,120]
[336743313,1725096107934,-796.11,0.00039452,120]
[336743314,1725096107984,-4060.92,0.00039452,120]
[336743315,1725096108036,-1529.27,0.00039452,120]
[336743316,1725096108085,-764.48,0.00039452,120]
[336743317,1725096108132,-2246.61,0.00039452,120]
[336743318,1725096108181,-2118.38,0.00039452,120]
[336743319,1725096108231,-817.1,0.00039452,120]
[336743320,1725096108279,-500.0,0.00039452,120]
[336743321,1725096108327,-2580.32,0.00039452,120]
[336743322,1725096108377,-602.83,0.00039452,120]
[336743323,1725096108426,-2730.58,0.00039452,120]
[336743324,1725096108475,-567.84,0.00039452,120]
[336743325,1725096108523,-906.16,0.00039452,120]
[336743326,1725096108572,-881.66,0.00039452,120]
[336743327,1725096108622,-6580.53,0.00039452,120]
[336743328,1725096108670,-500.0,0.00039452,120]
[336743329,1725096108719,-776.12,0.00039452,120]
[336743330,1725096108770,-3133.75,0.00039452,120]
[336743331,1725096108820,-1318.72,0.00039452,120]
[336743332,1725096108868,-500.0,0.00039452,120]
[336743333,1725096108916,-3220.73,0.00039452,120]
[336743334,1725096108965,-512.71,0.00039452,120]
[336743335,1725096109015,-500.0,0.00039452,120]
[336743336,1725096109064,-924.45,0.00039452,120]
[336743337,1725096109111,-1223.28,0.00039452,120]
[336743338,1725096109158,-1129.99,0.00039452,120]
[336743339,1725096109207,-500.0,0.00039452,120]
[336743340,1725096109255,-608.6,0.00039452,120]
[336743341,1725096109303,-1166.67,0.00039452,120]
[336743342,1725096109349,-544.23434867,0.00039452,120]
[336743343,1725096109397,-500.0,0.00039452,120]
[336743344,1725096109447,-18433.68,0.00039452,120]
[336743345,1725096109499,-1392.73,0.00039452,120]
[336743346,1725096109551,-9146.0,0.00039452,120]
[336743347,1725096109606,-1402.0,0.00039452,120]
[336743348,1725096109657,-1370.15,0.00039452,120]
[336743349,1725096109707,-200.0,0.00039529,120]
[336743350,1725096109758,-600.0,0.00039726,120]
[336743351,1725096109809,-600.0,0.00039726,120]
[336743352,1725096109861,-600.0,0.00039726,120]
[336743353,1725096109913,-2294.0,0.00039891,76]
[336743354,1725096109962,-159.03,0.00039938,120]
[336743355,1725096110011,-500.0,0.0004,120]
[336743356,1725096110058,-761.33,0.0004,120]
[336743357,1725096110105,-500.0,0.0004,120]
[336743358,1725096110151,-500.0,0.0004,120]
[336743359,1725096110200,-500.0,0.0004,120]
[336743360,1725096110247,-500.0,0.0004,120]
[336743361,1725096110292,-728.45,0.0004,120]
[336743362,1725096110336,-500.0,0.0004,120]
[336743363,1725096110379,-335.96325088,0.0004,120]
[336743364,1725096110421,-500.0,0.0004,120]
[336743365,1725096110466,-602.57,0.0004,120]
[336743366,1725096110509,-500.0,0.0004,120]
[336743367,1725096110553,-1536.81,0.0004,120]
[336743368,1725096110758,-718.45,0.0004,120]
[336743369,1725096110809,-500.0,0.0004,120]
[336743370,1725096110858,-613.86,0.0004,120]
[336743371,1725096110906,-500.0,0.0004,120]
[336743372,1725096110954,-737.5,0.0004,120]
[336743373,1725096111000,-500.0,0.0004,120]
[336743374,1725096111046,-500.0,0.0004,120]
[336743375,1725096111091,-500.0,0.0004,120]
[336743376,1725096111137,-500.0,0.0004,120]
[336743377,1725096111182,-500.0,0.0004,120]
[336743378,1725096111227,-500.0,0.0004,120]
[336743379,1725096111273,-854.52,0.0004,120]
[336743380,1725096111319,-500.0,0.0004,120]
[336743381,1725096111364,-500.0,0.0004,120]
[336743382,1725096111408,-500.0,0.0004,120]
[336743383,1725096111455,-500.0,0.0004,120]
[336743384,1725096111501,-500.0,0.0004,120]
[336743385,1725096111548,-500.0,0.0004,120]
[336743386,1725096111596,-500.0,0.0004,120]
[336743387,1725096111647,-504.81,0.0004,120]
[336743388,1725096111697,-500.0,0.0004,120]
[336743389,1725096111748,-500.0,0.0004,120]
[336743390,1725096111797,-577.66,0.0004,120]
[336743391,1725096111846,-500.0,0.0004,120]
[336743392,1725096111895,-537.13,0.0004,120]
[336743393,1725096111942,-500.0,0.0004,120]
[336743394,1725096111990,-639.49,0.0004,120]
[336743395,1725096112038,-500.0,0.0004,120]
[336743396,1725096112086,-500.0,0.0004,120]
[336743397,1725096112134,-500.0,0.0004,120]
[336743398,1725096112182,-558.16,0.0004,120]
[336743399,1725096112230,-500.0,0.0004,120]
[336743400,1725096112279,-500.0,0.0004,120]
[336743401,1725096112326,-606.69,0.0004,120]
[336743402,1725096112370,-409.15565071,0.0004,120]
[336743403,1725096112415,-500.0,0.0004,120]
[336743404,1725096112468,-500.0,0.0004,120]
[336743405,1725096112518,-518.04378367,0.0004,120]
[336743406,1725096112572,-500.0,0.0004,120]
[336743407,1725096112625,-500.06,0.0004,120]
[336743408,1725096112681,-533.19,0.0004,120]
[336743409,1725096112734,-781.37,0.0004,120]
[336743410,1725096112783,-500.0,0.0004,120]
[336743411,1725096112835,-500.0,0.0004,120]
[336743412,1725096112886,-541.93,0.0004,120]
[336743413,1725096112936,-500.0,0.0004,120]
[336743414,1725096112987,-541.84,0.0004,120]
[336743415,1725096113037,-500.0,0.0004,120]
[336743416,1725096113085,-500.0,0.0004,120]
[336743417,1725096113135,-500.0,0.0004,120]
[336743418,1725096113184,-500.0,0.0004,120]
[336743419,1725096113233,-500.0,0.0004,120]
[336743420,1725096113283,-600.0,0.0004,120]
[336743421,1725096113334,-500.0,0.0004,120]
[336743422,1725096113385,-500.0,0.0004,120]
[336743423,1725096113435,-838.09,0.0004,120]
[336743424,1725096113489,-500.0,0.0004,120]
[336743425,1725096113544,-500.0,0.0004,120]
[336743426,1725096113596,-500.0,0.0004,120]
[336743427,1725096113647,-509.55,0.0004,120]
[336743428,1725096113699,-500.0,0.0004,120]
[336743429,1725096113752,-500.0,0.0004,120]
[336743430,1725096113803,-500.0,0.0004,120]
[336743431,1725096113854,-708.98,0.0004,120]
[336743432,1725096113906,-500.0,0.0004,120]
[336743433,1725096113958,-500.0,0.0004,120]
[336743434,1725096114011,-500.0,0.0004,120]
[336743435,1725096114063,-1509.98,0.0004,120]
[336743436,1725096114115,-558.78,0.0004,120]
[336743437,1725096114168,-500.0,0.0004,120]
[336743438,1725096114220,-1624.06,0.0004,120]
[336743439,1725096114271,-558.23928266,0.0004,120]
[336743440,1725096114319,-500.0,0.0004,120]
[336743441,1725096114369,-500.0,0.0004,120]
[336743442,1725096114417,-640.25,0.0004,120]
[336743443,1725096114469,-500.0,0.0004,120]
[336743444,1725096114522,-934.21,0.0004,120]
[336743445,1725096114576,-969.88,0.0004,120]
[336743446,1725096114629,-791.62,0.0004,120]
[336743447,1725096114683,-915.31,0.0004,120]
[336743448,1725096114738,-1688.13,0.0004,120]
[336743449,1725096114793,-616.66,0.0004,120]
[336743450,1725096114844,-777.63,0.0004,120]
[336743451,1725096114893,-500.0,0.0004,120]
[336743452,1725096114945,-1310.98,0.0004,120]
[336743453,1725096114995,-875.1,0.0004,120]
[336743454,1725096115044,-1032.09,0.0004,120]
[336743455,1725096115092,-2876.73,0.0004,120]
[336743456,1725096115139,-761.85,0.0004,120]
[336743457,1725096115188,-1344.34,0.0004,120]
[336743458,1725096115236,-500.0,0.0004,120]
[336743459,1725096115282,-500.0,0.0004,120]
[336743460,1725096115328,-4839.39,0.0004,120]
[336743461,1725096115374,-500.0,0.0004,120]
[336743462,1725096115424,-1399.41,0.0004,120]
[336743463,1725096115470,-500.0,0.0004,120]
[336743464,1725096115519,-588.48,0.0004,120]
[336743465,1725096115566,-500.0,0.0004,120]
[336743466,1725096115614,-500.0,0.0004,120]
[336743467,1725096115660,-500.0,0.0004,120]
[336743468,1725096115706,-559.89,0.0004,120]
[336743469,1725096115752,-500.0,0.0004,120]
[336743470,1725096115798,-500.0,0.0004,120]
[336743471,1725096115843,-500.0,0.0004,120]
[336743472,1725096116040,-511.74,0.0004,120]
[336743473,1725096116090,-500.0,0.0004,120]
[336743474,1725096116137,-500.0,0.0004,120]
[336743475,1725096116184,-500.0,0.0004,120]
[336743476,1725096116230,-1112.54,0.0004,120]
[336743477,1725096116275,-500.0,0.0004,120]
[336743478,1725096116320,-500.0,0.0004,120]
[336743479,1725096116364,-500.0,0.0004,120]
[336743480,1725096116409,-508.19,0.0004,120]
[336743481,1725096116456,-2558.51,0.0004,120]
[336743482,1725096116505,-500.0,0.0004,120]
[336743483,1725096116556,-214.89408732,0.0004,120]
[336743484,1725096116613,-513.18422829,0.0004,120]
[336743485,1725096116664,-309.68224522,0.0004,120]
[336743486,1725096116718,-694.5,0.0004,120]